bitfinex/quotes_ETHUSD_20251212
["timestamp","ask_amount","ask_price","bid_price","bid_amount"]
[1765519429638,0.4778,3254.5,3254.4,0.001]
[1765519430139,0.9726,3254.5,3254.4,0.001]
[1765519430915,3.76119112,3254.8,3254.4,0.001]
[1765519431114,4.18601023,3254.8,3254.4,0.001]
[1765519431419,0.4948,3254.7,3254.4,0.001]
[1765519431729,0.9818,3254.7,3254.4,0.001]
[1765519432142,0.4948,3255.2,3254.6,0.0245]
[1765519432424,0.487,3255.2,3254.7,0.0245]
[1765519432725,0.487,3255.2,3254.7,0.049]
[1765519433130,3.56656916,3255.5,3254.7,3.12147979]
[1765519433330,0.487,3255.3,3254.7,3.12147979]
[1765519433531,0.487,3255.3,3254.7,4.04385712]
[1765519435642,0.487,3255.3,3254.7,0.97137733]
[1765519435841,0.487,3255.3,3254.7,0.94687733]
[1765519436043,0.4948,3255.2,3254.7,0.94687733]
[1765519436530,0.4948,3255.2,3254.7,0.0245]
[1765519436707,0.6718,3254.8,3254.4,0.001]
[1765519436910,0.487,3254.7,3254.4,0.92346809]
[1765519437334,0.4778,3254.5,3254.4,0.92346809]
[1765519438027,0.9818,3254.7,3254.4,0.92346809]
[1765519438402,0.4778,3254.5,3254.4,0.001]
[1765519438801,0.9726,3254.5,3254.4,0.001]
[1765519440735,3.07177439,3255.5,3254.4,0.0255]
[1765519440910,0.78037529,3255.9,3254.4,0.0255]
[1765519440911,0.487,3254.8,3254.4,0.0255]
[1765519441236,3.07204096,3255.2,3254.4,0.0255]
[1765519441423,0.487,3255.1,3254.7,0.0245]
[1765519441807,0.4778,3254.8,3254.4,0.001]
[1765519442002,0.4778,3254.5,3254.4,0.001]
[1765519442234,0.9818,3254.7,3254.4,0.001]
[1765519442400,0.9818,3254.7,3254.4,0.0255]
[1765519442824,0.9818,3254.7,3254.4,0.001]
[1765519443010,0.4778,3254.5,3254.4,0.001]
[1765519443730,0.9726,3254.5,3254.4,0.001]
[1765519443930,0.4778,3254.5,3254.4,0.001]
[1765519444502,0.6888,3254.8,3254.4,0.0255]
[1765519444706,0.9818,3254.7,3254.4,0.001]
[1765519445333,0.4778,3254.5,3254.4,0.001]
[1765519446740,0.9726,3254.5,3254.4,0.001]
[1765519450648,4.04526861,3254.5,3254.4,0.001]
[1765519451350,4.49849547,3254.5,3254.4,0.001]
[1765519454246,0.487,3254.5,3254.4,0.0255]
[1765519455467,0.9447,3254.5,3254.4,0.001]
[1765519455658,1.4303,3254.5,3254.4,0.001]
[1765519459471,4.50296861,3254.5,3254.4,0.001]
[1765519459643,1.4303,3254.5,3254.4,0.001]
[1765519460258,0.487,3254.5,3254.4,0.0255]
[1765519460471,0.9687,3254.5,3254.4,0.001]
[1765519463175,0.487,3254.5,3254.4,0.0255]
[1765519463747,0.6759,3254.8,3254.4,0.0255]
[1765519463946,0.487,3254.7,3254.4,0.0255]
[1765519464546,0.9689,3254.7,3254.4,0.0255]
[1765519464947,0.487,3254.6,3254.4,0.0255]
[1765519465963,0.487,3254.6,3254.4,0.001]
[1765519466183,0.9689,3254.6,3254.4,0.001]
[1765519466379,3.07187231,3255.4,3254.5,0.0245]
[1765519466380,0.672,3255.1,3254.5,0.0245]
[1765519466562,3.55920333,3255.0,3254.6,0.0245]
[1765519466763,0.9689,3255.0,3254.6,0.0245]
[1765519467072,0.4819,3254.9,3254.6,0.0245]
[1765519467277,0.487,3254.8,3254.6,0.0245]
[1765519468380,0.487,3254.8,3254.4,0.001]
[1765519468579,0.9689,3254.8,3254.4,0.001]
[1765519469376,0.487,3254.8,3254.4,0.001]
[1765519469974,0.487,3254.7,3254.4,0.001]
[1765519471078,0.4817,3254.5,3254.4,0.001]
[1765519471554,0.9636,3254.5,3254.4,0.001]
[1765519474283,0.4817,3254.5,3254.4,0.001]
[1765519475078,0.9689,3254.7,3254.4,0.001]
[1765519475260,3.55948567,3254.7,3254.4,0.001]
[1765519475460,0.4817,3254.5,3254.4,0.001]
[1765519475860,3.07232636,3254.9,3254.4,0.001]
[1765519476058,0.79323264,3254.8,3254.4,0.001]
[1765519476386,1.27513264,3254.8,3254.4,0.001]
[1765519476558,0.4819,3254.7,3254.4,0.001]
[1765519476755,3.47727719,3255.5,3254.4,0.001]
[1765519476756,0.6818,3255.9,3254.7,0.0245]
[1765519476960,0.58047529,3255.5,3254.8,0.0245]
[1765519477156,1.11078907,3255.4,3254.8,0.0245]
[1765519477563,0.62478907,3255.4,3254.8,0.0245]
[1765519477760,0.486,3255.3,3254.8,0.0245]
[1765519478159,0.9679,3255.3,3254.8,0.0245]
[1765519478393,0.486,3255.2,3254.8,0.0245]
[1765519478688,0.486,3255.1,3254.8,0.049]
[1765519479088,0.486,3255.1,3255.0,0.0245]
[1765519479589,3.07195756,3255.3,3255.0,0.0245]
[1765519479771,0.486,3255.2,3255.0,0.0245]
[1765519480988,3.55802761,3255.2,3255.0,0.0245]
[1765519481162,3.55802761,3255.2,3254.5,3.09714715]
[1765519481564,0.4819,3255.5,3255.1,0.0245]
[1765519481760,0.486,3255.4,3255.1,0.0245]
[1765519481962,0.64083753,3255.4,3255.1,0.0245]
[1765519482165,1.12273753,3255.4,3255.1,0.0245]
[1765519482365,0.4817,3255.2,3254.7,3.07247289]
[1765519482565,0.486,3255.4,3254.8,3.07238303]
[1765519482798,0.486,3255.4,3255.1,0.0245]
[1765519483093,0.9480121,3255.4,3255.1,0.0245]
[1765519483296,1.4071121,3255.4,3255.1,0.0245]
[1765519483477,4.4789446,3255.4,3255.1,0.0245]
[1765519483662,0.9480121,3255.4,3255.1,0.0245]
[1765519483866,4.01983987,3255.4,3255.1,0.0245]
[1765519484394,4.47893987,3255.4,3255.1,0.0245]
[1765519484596,4.47893854,3255.4,3255.1,0.0245]
[1765519485763,3.99293854,3255.4,3255.1,0.0245]
[1765519485972,0.486,3255.3,3255.1,0.0245]
[1765519486488,0.486,3255.3,3254.7,3.0969571]
[1765519487076,0.486,3255.3,3254.7,0.0245]
[1765519487466,3.5579238,3255.3,3254.7,3.09697967]
[1765519487800,3.5310238,3255.3,3254.6,3.0725405]
[1765519487979,0.486,3255.2,3254.6,3.0725405]
[1765519488182,0.486,3255.2,3254.6,3.0970405]
[1765519489001,0.9451,3255.2,3254.6,3.0970405]
[1765519490495,0.4591,3255.2,3254.6,3.0970405]
[1765519490696,0.486,3255.1,3254.6,3.0725405]
[1765519491373,0.486,3255.1,3254.7,0.0245]
[1765519491788,0.4653,3254.8,3254.4,0.001]
[1765519491992,0.486,3254.7,3254.5,3.07258256]
[1765519492392,0.486,3254.7,3254.6,0.0245]
[1765519493410,0.486,3254.7,3254.6,3.0970742]
[1765519493780,3.07183504,3255.4,3254.6,3.73865549]
[1765519493978,0.486,3255.3,3254.6,3.1215742]
[1765519494703,0.4591,3255.2,3254.6,3.07255162]
[1765519495082,3.07193791,3255.3,3254.6,3.07255162]
[1765519495407,0.58047529,3256.0,3254.7,3.39396]
[1765519495617,0.1833,3256.9,3254.7,3.39396]
[1765519495618,0.1833,3256.9,3255.9,0.0245]
[1765519495804,0.4591,3256.5,3255.9,0.0245]
[1765519496105,0.487,3256.4,3255.9,0.0245]
[1765519496308,0.1833,3256.9,3256.4,0.0245]
[1765519496309,0.4591,3256.8,3256.4,0.0245]
[1765519496481,0.002,3257.1,3256.4,0.0245]
[1765519496482,0.487,3256.7,3256.4,0.0245]
[1765519496804,0.4591,3257.0,3256.0,1.08041587]
[1765519496805,0.487,3256.6,3256.5,3.07078151]
[1765519497005,0.002,3257.1,3256.6,0.0245]
[1765519497386,0.002,3257.1,3257.0,0.0245]
[1765519497594,0.002,3257.1,3257.0,0.049]
[1765519497913,0.002,3257.1,3257.0,5.71365866]
[1765519498209,0.002,3257.1,3257.0,5.68260591]
[1765519498734,0.002,3257.1,3257.0,8.75291601]
[1765519498913,0.002,3257.1,3257.0,9.93525037]
[1765519499919,0.002,3257.1,3257.0,38.17767032]
[1765519500130,0.002,3257.1,3257.0,33.31750032]
[1765519500281,0.002,3257.1,3257.0,33.83040418]
[1765519500478,14.859504,3257.3,3257.0,33.83040418]
[1765519500479,1e-08,3257.3,3257.2,25.715358]
[1765519500678,1e-08,3257.3,3257.2,32.93658866]
[1765519500986,0.002,3257.7,3257.5,0.98597929]
[1765519501196,0.002,3258.5,3257.5,0.98597929]
[1765519501197,1e-08,3258.0,3257.7,0.98597929]
[1765519501395,0.002,3258.5,3257.7,0.98597929]
[1765519501396,0.002,3258.5,3258.0,30.98597929]
[1765519501610,0.002,3258.5,3258.3,0.405504]
[1765519501814,0.002,3258.5,3258.4,36.67333747]
[1765519501976,0.002,3258.8,3258.5,0.98597929]
[1765519502328,0.002,3258.8,3258.7,11.80152029]
[1765519502505,0.002,3258.8,3258.7,13.02222272]
[1765519502709,0.002,3258.8,3258.7,16.0909311]
[1765519502913,0.002,3259.1,3259.0,24.277528]
[1765519503225,0.002,3259.1,3259.0,22.12306815]
[1765519503388,0.002,3259.1,3259.0,1.49888315]
[1765519503588,0.002,3259.1,3259.0,0.58047529]
[1765519503819,0.002,3259.1,3258.8,0.487]
[1765519504119,0.002,3259.1,3258.7,3.06870524]
[1765519504321,0.002,3259.1,3258.5,3.55580985]
[1765519504512,0.002,3259.1,3258.5,0.86191099]
[1765519504695,0.002,3259.1,3258.5,3.55586873]
[1765519505022,0.4611,3259.1,3258.5,0.487]
[1765519505695,0.4611,3259.1,3258.4,3.26220555]
[1765519505891,0.4611,3259.1,3258.4,0.1933]
[1765519506116,0.4653,3258.5,3258.4,0.1933]
[1765519506291,1.1177,3258.5,3258.4,0.1933]
[1765519506494,1.1177,3258.5,3257.3,0.94972731]
[1765519506826,0.4591,3258.4,3257.7,0.9214594]
[1765519507012,0.4591,3258.4,3257.7,3.99108958]
[1765519507213,0.4591,3258.4,3257.7,0.9214594]
[1765519507415,0.4591,3258.4,3257.7,3.99103664]
[1765519507729,0.4591,3258.4,3257.7,4.43641304]
[1765519507926,0.1933,3258.5,3257.7,4.43644201]
[1765519508129,3.72130797,3258.5,3257.7,1.3668358]
[1765519508300,3.72130797,3258.5,3257.7,0.9214594]
[1765519508825,0.6524,3258.5,3257.7,3.99108961]
[1765519509023,3.72132739,3258.5,3257.7,3.99108961]
[1765519509321,0.6524,3258.5,3257.7,3.99108961]
[1765519509526,0.6524,3258.5,3257.7,7.06073997]
[1765519509725,0.1933,3258.5,3257.8,0.706074]
[1765519510122,3.72132276,3258.5,3257.7,3.99110786]
[1765519510334,0.6524,3258.5,3257.7,3.99108845]
[1765519510535,0.6524,3258.5,3257.7,4.02178495]
[1765519510742,0.6524,3258.5,3257.7,3.99108845]
[1765519510902,3.72131015,3258.5,3257.7,4.45381576]
[1765519511104,3.72131015,3258.5,3257.7,5.25245323]
[1765519511532,0.6524,3258.5,3257.7,4.78972592]
[1765519511844,0.77377529,3259.0,3257.7,4.78972592]
[1765519511845,0.9451,3258.7,3257.7,4.78972592]
[1765519512555,0.9451,3258.7,3257.7,7.85937628]
[1765519512750,0.9451,3258.7,3257.7,4.78972592]
[1765519512908,3.52792622,3258.6,3257.7,3.99107652]
[1765519513304,0.4954,3258.5,3257.7,3.06961712]
[1765519513603,3.55482622,3258.6,3257.8,0.92142261]
[1765519514722,0.4954,3258.5,3257.8,0.92142261]
[1765519515517,3.56438418,3258.5,3257.8,0.92142261]
[1765519515719,4.27629865,3258.5,3257.8,0.92142261]
[1765519515926,0.4954,3258.4,3257.8,0.92142261]
[1765519516260,0.486,3258.5,3257.8,0.92142261]
[1765519516420,0.4579,3258.4,3257.8,0.92142261]
[1765519517337,0.6439,3257.9,3257.8,0.92142261]
[1765519517546,0.6439,3257.9,3257.3,0.487]
[1765519517750,0.4579,3257.8,3257.4,0.6439]
[1765519518048,0.4579,3257.8,3257.0,3.07029881]
[1765519518227,0.4579,3257.8,3257.2,0.88898322]
[1765519518634,0.4579,3257.8,3256.8,0.486]
[1765519518635,0.4547,3257.3,3256.8,0.486]
[1765519518829,0.4547,3256.9,3256.7,0.9217496]
[1765519519234,0.4579,3257.1,3256.4,0.001]
[1765519519536,0.4547,3256.8,3256.5,0.486]
[1765519519739,3.2586622,3257.9,3256.6,0.58047529]
[1765519519740,0.1892,3257.9,3256.6,0.58047529]
[1765519519943,0.4579,3258.2,3257.0,0.405504]
[1765519520130,3.52710016,3258.2,3257.1,0.486]
[1765519520329,3.92841018,3258.2,3257.1,0.486]
[1765519520528,0.4579,3258.1,3257.1,0.486]
[1765519521742,0.4579,3258.1,3257.1,3.55616897]
[1765519522061,0.4579,3258.1,3257.1,3.07016897]
[1765519522273,3.06936771,3258.0,3257.1,3.07016897]
[1765519522566,0.9449,3258.8,3257.4,0.98597929]
[1765519522743,0.9449,3258.8,3257.5,0.487]
[1765519522744,0.487,3258.8,3257.5,0.487]
[1765519522942,0.4579,3258.7,3257.5,0.487]
[1765519523840,3.26176911,3259.0,3257.7,27.05887229]
[1765519523841,0.1933,3259.0,3257.7,27.05887229]
[1765519524039,0.002,3259.1,3258.1,0.46272731]
[1765519524342,0.002,3259.1,3258.3,0.405504]
[1765519524864,0.002,3259.1,3258.5,0.405504]
[1765519525243,0.002,3259.1,3258.9,0.46272731]
[1765519525637,0.002,3259.1,3258.7,0.487]
[1765519525837,0.002,3259.1,3258.8,3.06861421]
[1765519526031,0.002,3259.1,3258.8,3.73104165]
[1765519526273,0.002,3259.1,3258.8,6.79965586]
[1765519526740,0.002,3259.1,3258.8,3.73104165]
[1765519527346,0.002,3259.1,3258.8,0.66242744]
[1765519527553,0.002,3259.1,3258.7,3.06870314]
[1765519527964,0.002,3259.1,3258.5,0.58047529]
[1765519528144,0.002,3259.1,3258.5,1.0432026]
[1765519528548,0.002,3259.1,3258.5,0.58047529]
[1765519528750,0.002,3259.1,3258.5,1.0432026]
[1765519528944,0.002,3259.1,3258.6,0.71811844]
[1765519530376,0.4579,3259.0,3258.6,3.06876944]
[1765519530673,0.002,3259.1,3258.6,6.13757199]
[1765519530877,0.002,3259.1,3258.6,3.06876944]
[1765519531041,0.4599,3259.1,3258.6,3.06876944]
[1765519532045,0.4599,3259.1,3258.3,0.487]
[1765519532264,0.4599,3259.1,3258.4,6.13796332]
[1765519532567,0.4599,3259.1,3258.4,6.80045965]
[1765519533352,0.002,3259.1,3258.4,6.80045965]
[1765519533947,0.002,3259.1,3258.5,0.03068896]
[1765519534148,0.002,3259.1,3258.5,0.49341627]
[1765519534450,0.002,3259.1,3258.6,6.1376051]
[1765519534754,0.002,3259.1,3258.7,1.0432026]
[1765519534978,0.002,3259.1,3258.9,0.46272731]
[1765519535473,0.002,3259.1,3259.0,0.405504]
[1765519535657,0.002,3259.1,3258.7,1.5292026]
[1765519535858,0.4599,3259.1,3258.7,1.06647529]
[1765519536059,0.4599,3259.1,3258.6,3.06880255]
[1765519536325,0.4599,3259.1,3258.5,0.58047529]
[1765519537655,0.4599,3259.1,3258.4,6.13798182]
[1765519538544,0.4599,3259.1,3258.4,6.80038]
[1765519540858,0.002,3259.1,3258.5,0.58047529]
[1765519541447,0.002,3259.1,3258.5,1.0432026]
[1765519542479,0.002,3259.1,3258.6,6.1376051]
[1765519542969,0.4648,3259.1,3258.6,6.1376051]
[1765519543170,0.002,3259.1,3258.7,1.12276055]
[1765519543378,0.002,3259.1,3258.7,1.15344763]
[1765519543553,0.002,3259.1,3258.7,1.63944763]
[1765519544159,0.002,3259.1,3258.7,1.60876055]
[1765519544567,0.002,3259.1,3258.9,0.46272731]
[1765519544879,0.002,3259.1,3259.0,0.69374844]
[1765519546266,0.002,3259.1,3259.0,0.66306419]
[1765519546490,0.002,3259.1,3259.0,3.76217433]
[1765519546796,0.002,3259.1,3259.0,3.73149008]
[1765519548660,0.9386,3259.1,3258.7,0.66003324]
[1765519548863,0.9386,3259.1,3258.5,0.94872731]
[1765519549068,0.9386,3259.1,3259.0,3.06842589]
[1765519549069,0.4758,3259.1,3259.0,3.06842589]
[1765519550491,0.002,3259.1,3259.0,3.06842589]
[1765519550900,0.002,3259.1,3258.9,0.46272731]
[1765519551101,0.002,3259.1,3259.0,0.405504]
[1765519551259,0.002,3259.1,3259.0,0.43618825]
[1765519551589,0.002,3259.1,3259.0,10.31297329]
[1765519551757,0.002,3259.1,3259.0,1.69830798]
[1765519551957,0.002,3259.1,3258.9,0.486]
[1765519552788,0.002,3259.1,3259.0,3.06842589]
[1765519553565,0.4758,3259.1,3259.0,3.06842589]
[1765519554076,0.002,3259.1,3259.0,3.06842589]
[1765519556893,0.9386,3259.1,3259.0,3.06842589]
[1765519557104,0.9386,3259.1,3258.9,3.06844435]
[1765519557272,0.9386,3259.1,3258.6,0.58047529]
[1765519557273,0.4738,3259.0,3258.7,3.06862625]
[1765519557474,0.4738,3259.0,3258.7,6.59711752]
[1765519558190,0.002,3259.1,3258.7,6.59711752]
[1765519560371,0.002,3259.1,3258.7,3.06862625]
[1765519560372,0.4738,3258.8,3258.7,3.06862625]
[1765519560680,0.4648,3259.1,3258.7,3.06862625]
[1765519560884,0.4738,3258.8,3258.7,3.06862625]
[1765519561062,0.4648,3259.1,3258.7,3.06862625]
[1765519561263,0.6675,3258.8,3258.7,3.06862625]
[1765519561491,0.6675,3258.8,3258.6,3.06877598]
[1765519561659,0.6675,3258.8,3258.3,6.1381702]
[1765519561660,1.1303,3258.8,3258.3,6.1381702]
[1765519561867,1.1303,3258.8,3258.4,0.67186455]
[1765519562063,0.4628,3258.7,3258.3,3.0690851]
[1765519562377,0.4628,3258.7,3258.3,6.1381702]
[1765519563796,0.4628,3258.7,3258.2,6.1383586]
[1765519565495,0.1937,3258.8,3258.2,9.2075379]
[1765519565699,0.6565,3259.0,3258.3,1.01831691]
[1765519565993,0.6565,3259.0,3258.4,6.13798182]
[1765519567598,0.002,3259.1,3258.5,0.46272731]
[1765519567798,0.4648,3259.1,3258.4,6.60070913]
[1765519567998,0.4648,3259.1,3258.4,7.41390212]
[1765519568176,0.4648,3259.1,3258.4,3.06899091]
[1765519568782,0.45713201,3259.1,3258.4,6.13798182]
[1765519570000,0.45713201,3259.1,3258.3,6.1381702]
[1765519570301,3.06814346,3259.3,3258.4,0.46272731]
[1765519570668,0.4628,3259.2,3258.3,6.1381702]
[1765519570873,0.4628,3259.2,3258.3,6.79825995]
[1765519572505,3.5310485,3259.2,3258.3,6.79825995]
[1765519572808,0.4628,3259.2,3258.3,6.79825995]
[1765519573008,0.491,3259.1,3258.3,6.79825995]
[1765519573308,0.491,3259.1,3258.4,0.679826]
[1765519574408,0.491,3259.1,3258.5,6.13779346]
[1765519575805,0.491,3259.3,3258.5,6.13779346]
[1765519576800,0.491,3259.3,3258.5,9.20669019]
[1765519577005,0.491,3259.3,3258.6,0.46272731]
[1765519577207,0.491,3259.3,3258.7,0.96694175]
[1765519577413,0.002,3260.2,3259.1,15.072149]
[1765519577609,0.002,3260.2,3259.2,0.486]
[1765519577815,0.002,3260.2,3259.3,16.440736]
[1765519578042,0.002,3260.2,3259.7,0.98597929]
[1765519578338,0.4639,3260.2,3259.9,0.405504]
[1765519578539,0.4639,3260.2,3259.5,0.486]
[1765519578681,0.69,3259.6,3259.2,3.06821433]
[1765519578880,0.69,3259.6,3258.8,0.58047529]
[1765519578881,0.494,3259.4,3258.8,0.58047529]
[1765519579095,0.494,3259.4,3258.8,0.486]
[1765519579294,0.9559,3259.4,3258.8,0.486]
[1765519579494,0.494,3259.4,3258.8,0.486]
[1765519579691,0.494,3259.4,3259.2,3.06822333]
[1765519580016,0.494,3259.4,3259.3,3.06814346]
[1765519580214,0.6579,3259.6,3259.3,6.13628692]
[1765519580515,0.196,3259.6,3259.3,3.06814346]
[1765519580699,0.494,3259.4,3258.9,3.06843016]
[1765519580900,0.494,3259.4,3258.9,7.03411349]
[1765519581116,0.4619,3259.3,3258.9,3.96559344]
[1765519581417,0.494,3259.0,3258.9,3.55443016]
[1765519581600,0.494,3259.0,3258.8,3.06860061]
[1765519581800,0.494,3259.0,3258.3,1.0432026]
[1765519581801,0.494,3258.9,3258.7,3.06863977]
[1765519582118,3.74987272,3259.6,3258.8,3.06861421]
[1765519582293,0.4619,3259.5,3258.8,3.06861421]
[1765519582681,0.4619,3259.5,3258.5,0.98597929]
[1765519582885,0.4619,3259.5,3258.6,0.40549702]
[1765519583883,0.4619,3259.5,3258.7,0.94872731]
[1765519584087,0.196,3259.6,3258.7,0.94872731]
[1765519584618,0.4619,3259.8,3258.9,0.46272731]
[1765519584832,0.4619,3259.8,3259.1,0.46272731]
[1765519584989,0.4639,3260.2,3259.3,15.607154]
[1765519585188,0.4639,3260.2,3259.4,0.03068049]
[1765519585391,0.4639,3260.2,3259.5,0.405504]
[1765519585615,0.4639,3260.2,3259.4,0.405504]
[1765519585784,0.002,3260.2,3259.4,0.23627549]
[1765519585989,0.002,3260.2,3259.4,0.64177949]
[1765519585990,0.4639,3260.2,3259.4,0.64177949]
[1765519586287,0.4639,3260.2,3259.4,0.23627549]
[1765519586515,0.002,3260.2,3259.5,0.86823131]
[1765519586715,0.002,3260.2,3259.6,0.486]
[1765519586904,0.002,3260.2,3259.8,8.432763]
[1765519587106,0.002,3260.2,3260.1,0.405504]
[1765519587417,0.002,3260.2,3260.1,18.737452]
[1765519587616,0.002,3260.2,3260.1,11.536571]
[1765519588091,0.002,3260.2,3260.1,5.707779]
[1765519588292,0.002,3260.2,3260.1,7.651395]
[1765519588602,0.002,3260.2,3260.1,8.64379514]
[1765519588794,0.002,3260.2,3260.1,12.291661]
[1765519589400,0.002,3260.5,3260.2,0.98597929]
[1765519589599,0.002,3260.5,3260.4,11.63982529]
[1765519589916,0.002,3260.5,3260.4,9.72238829]
[1765519590224,0.002,3260.5,3260.4,12.81072695]
[1765519590401,0.002,3260.5,3260.4,34.07431795]
[1765519590996,0.002,3260.5,3260.4,37.14142628]
[1765519593032,0.002,3260.5,3260.4,35.25596128]
[1765519593534,0.002,3260.5,3260.4,37.14142628]
[1765519593835,0.002,3260.5,3260.4,27.93811928]
[1765519594494,0.002,3260.5,3260.4,37.14142628]
[1765519596032,0.002,3260.5,3260.4,37.64142628]
[1765519596363,0.002,3260.5,3260.4,29.57664228]
[1765519596628,0.002,3260.5,3260.4,37.64142628]
[1765519597745,0.002,3261.9,3260.7,0.98597929]
[1765519598026,0.002,3261.9,3261.8,0.405504]
[1765519598229,0.496,3261.9,3261.7,0.486]
[1765519598435,0.496,3261.9,3260.9,0.46272731]
[1765519598436,0.494,3261.8,3260.9,0.46272731]
[1765519598621,0.494,3261.8,3261.0,0.405504]
[1765519598798,0.4619,3261.7,3261.0,1.8091412]
[1765519599128,0.4619,3261.7,3261.2,0.405504]
[1765519599499,0.4619,3261.7,3261.3,6.13252384]
[1765519599915,0.494,3261.4,3261.3,3.64673721]
[1765519600522,0.494,3261.4,3261.3,4.14073721]
[1765519600852,0.4619,3261.7,3261.3,7.20699913]
[1765519601516,0.494,3261.4,3261.3,0.494]
[1765519601721,0.494,3261.4,3260.9,3.06660986]
[1765519601945,0.4619,3261.3,3261.0,3.06652945]
[1765519602150,0.4619,3261.3,3261.1,3.06644141]
[1765519602318,0.494,3261.2,3261.1,3.06644141]
[1765519602956,0.198,3261.9,3261.1,6.13289138]
[1765519603268,0.4659,3261.8,3261.2,0.405504]
[1765519603432,0.4659,3261.8,3261.2,0.86823131]
[1765519603751,0.4861,3261.3,3261.2,3.47185994]
[1765519603924,0.4659,3261.8,3261.2,6.53821588]
[1765519604121,0.4861,3261.3,3261.2,3.93458725]
[1765519604447,0.4861,3261.3,3261.2,3.06635594]
[1765519604624,0.952,3261.3,3261.2,3.06635594]
[1765519605325,0.952,3261.3,3261.1,3.06644794]
[1765519605546,0.4861,3261.1,3261.0,0.486]
[1765519605723,0.4659,3261.8,3261.0,6.619088]
[1765519605932,0.4861,3261.1,3261.0,4.13301929]
[1765519606451,0.952,3261.1,3261.0,3.64701929]
[1765519607830,0.952,3261.1,3261.0,4.14701929]
[1765519608156,0.4861,3261.1,3261.0,4.14701929]
[1765519608359,0.952,3261.1,3261.0,4.14701929]
[1765519608564,0.952,3261.1,3261.0,5.06747786]
[1765519609359,0.952,3261.1,3261.0,0.5]
[1765519609929,0.952,3261.1,3260.8,3.06672544]
[1765519610131,0.6737,3260.9,3260.8,3.06672544]
[1765519610660,1.1396,3260.9,3260.8,3.06672544]
[1765519610866,1.1396,3260.9,3260.7,0.92058002]
[1765519611063,0.952,3260.8,3260.5,3.0669924]
[1765519611266,0.4659,3260.8,3260.7,3.06682614]
[1765519611469,0.4659,3260.7,3260.6,3.06689696]
[1765519611962,0.4659,3261.1,3260.6,6.13381715]
[1765519612169,0.17173064,3261.2,3260.6,6.16448635]
[1765519612335,0.63763064,3261.2,3260.6,6.62721366]
[1765519612530,0.4861,3260.7,3260.6,3.52962427]
[1765519612735,0.4861,3260.7,3260.6,3.06689696]
[1765519612930,0.952,3260.7,3260.6,3.06689696]
[1765519613569,0.17173064,3261.2,3260.6,3.06689696]
[1765519613570,0.4659,3261.1,3260.6,3.08189696]
[1765519613761,0.4659,3261.1,3260.6,6.14881715]
[1765519613963,0.4861,3260.7,3260.6,3.06689696]
[1765519614135,0.4861,3260.7,3260.6,3.55289696]
[1765519614962,0.952,3260.7,3260.6,3.55289696]
[1765519615640,0.4861,3260.7,3260.6,3.55289696]
[1765519616242,0.952,3260.7,3260.6,3.55289696]
[1765519620544,0.952,3260.7,3260.6,0.486]
[1765519621074,0.952,3260.7,3260.1,3.06736033]
[1765519621377,0.4659,3260.6,3260.1,0.92075237]
[1765519621569,0.4659,3260.6,3259.7,0.46272731]
[1765519621570,0.4861,3260.2,3259.8,3.06759242]
[1765519621775,0.4659,3260.6,3259.8,3.98834479]
[1765519621976,0.4659,3260.5,3260.1,0.5]
[1765519622381,0.4861,3260.2,3260.1,0.5]
[1765519622579,0.4861,3260.2,3260.1,3.56739057]
[1765519622776,0.952,3260.2,3260.1,3.56739057]
[1765519623582,0.952,3260.2,3260.1,0.5]
[1765519624658,1.35392327,3260.2,3259.7,3.06774805]
[1765519624859,0.4659,3260.1,3259.7,3.06774805]
[1765519625165,0.6737,3259.8,3259.5,0.92093327]
[1765519625372,0.4861,3259.6,3259.4,3.06803232]
[1765519625566,0.1876,3259.8,3259.5,3.0679552]
[1765519625746,0.6535,3259.8,3259.5,3.0829552]
[1765519625947,0.4861,3259.6,3259.5,3.0679552]
[1765519626248,0.4861,3259.6,3259.4,3.06804883]
[1765519626447,0.952,3259.6,3259.3,3.06814346]
[1765519626643,0.1876,3259.8,3259.3,6.5135396]
[1765519626863,7.21282681,3261.2,3259.3,6.5135396]
[1765519627079,0.4659,3260.1,3259.4,0.4934078]
[1765519627251,0.4659,3260.1,3259.4,0.46272731]
[1765519628409,0.4861,3259.5,3259.3,3.44539614]
[1765519628683,0.4861,3259.4,3259.3,3.06814346]
[1765519628885,0.952,3259.4,3259.3,3.06814346]
[1765519629090,0.952,3259.4,3259.2,3.74192015]
[1765519629291,0.952,3259.3,3259.2,3.64869544]
[1765519629497,0.4861,3259.3,3259.2,3.64869544]
[1765519629852,0.4861,3259.3,3259.0,0.9220605]
[1765519629853,0.952,3259.3,3259.0,0.9220605]
[1765519630217,0.4861,3259.1,3259.0,3.06942589]
[1765519630507,0.1876,3259.5,3259.2,0.015]
[1765519630674,0.4659,3259.8,3259.4,0.015]
[1765519631002,0.1876,3259.9,3259.0,6.75165103]
[1765519631003,0.4861,3259.5,3259.0,6.75165103]
[1765519631170,0.4861,3259.1,3259.0,3.68322514]
[1765519631575,0.952,3259.1,3257.5,0.001]
[1765519631889,0.4861,3257.6,3257.5,3.07082836]
[1765519632088,0.486,3258.5,3257.5,3.07082836]
[1765519632288,0.9519,3258.5,3257.6,0.33778028]
[1765519632498,0.4659,3258.5,3257.7,6.13930072]
[1765519632676,0.4659,3258.5,3257.8,0.03069556]
[1765519633280,0.4659,3258.5,3257.7,6.62530072]
[1765519633506,0.4659,3258.5,3257.8,0.03069556]
[1765519633800,0.4659,3258.5,3257.8,1.03556851]
[1765519634104,0.4659,3258.5,3257.9,0.405504]